fUST/lending_fUST_20240923
["ID","MTS","AMOUNT","RATE_DAILY","PERIOD"]
[338899691,1727038281708,-1639.7116202,0.00028219,15]
[338899692,1727038281718,-204.70136611,0.00028219,7]
[338899693,1727038281730,-501.91,0.00028219,15]
[338899694,1727038281740,-877.18845904,0.00028219,15]
[338899695,1727038281750,-2645.47458473,0.00028219,15]
[338899696,1727038281758,-654.71,0.00028219,15]
[338899697,1727038281768,-32172.38243191,0.00028219,15]
[338899698,1727038281778,-4735.35515736,0.00028219,15]
[338899699,1727038281788,-330.0,0.000283,120]
[338899700,1727038281798,-3329.0,0.000285,15]
[338899701,1727038281808,-823.0,0.00028538,2]
[338899702,1727038281818,-1572.24,0.000286,7]
[338899703,1727038281828,-200.0,0.000287,2]
[338899704,1727038281838,-153.0,0.00028795,2]
[338899705,1727038281851,-153.0,0.00028795,2]
[338899706,1727038281860,-153.0,0.00028795,2]
[338899707,1727038281870,-1000.0,0.000288,7]
[338899708,1727038281879,-150.18,0.000288,2]
[338899709,1727038281891,-237953.229442,0.000289,10]
[338899710,1727038281901,-300.0,0.00029,2]
[338899711,1727038281910,-2230.35934673,0.00029,30]
[338899712,1727038281921,-50086.22184399,0.00029,30]
[338899713,1727038281932,-172.22439296,0.00029014,30]
[338899714,1727038281941,-153.0,0.00029068,2]
[338899715,1727038281951,-153.0,0.00029068,2]
[338899716,1727038281961,-153.0,0.00029068,2]
[338899717,1727038281970,-153.0,0.00029068,2]
[338899718,1727038281982,-153.0,0.00029068,2]
[338899719,1727038281992,-27793.25,0.000291,14]
[338899720,1727038282002,-1375.06311362,0.00029166,2]
[338899721,1727038282012,-2924.71,0.000292,14]
[338899722,1727038282022,-730.4416,0.00029305,30]
[338899723,1727038282031,-172.22439295,0.00029397,30]
[338899724,1727038282040,-1000.0,0.000295,2]
[338899725,1727038282049,-208.9234097,0.00029616,2]
[338899726,1727038282058,-153.0,0.00029616,2]
[338899727,1727038282067,-153.0,0.00029616,2]
[338899728,1727038282076,-208.9234097,0.00029616,2]
[338899729,1727038282085,-208.9234097,0.00029616,2]
[338899730,1727038282094,-153.0,0.00029616,2]
[338899731,1727038282103,-153.0,0.00029616,2]
[338899732,1727038282113,-153.0,0.00029616,2]
[338899733,1727038282122,-153.0,0.00029616,2]
[338899734,1727038282131,-153.0,0.00029616,2]
[338899736,1727038282140,-153.0,0.00029616,2]
[338899737,1727038282150,-153.0,0.00029616,2]
[338899738,1727038282159,-628.40939886,0.00029882,2]
[338899740,1727038282168,-500.0,0.00029931,2]
[338899741,1727038282177,-300.0,0.0003,2]
[338899742,1727038282187,-400.0,0.0003,120]
[338899743,1727038282197,-3510.2136512,0.0003,120]
[338899744,1727038282206,-377.70907729,0.0003,120]
[338899745,1727038282215,-6343.0,0.0003,14]
[338899746,1727038282224,-1500.0,0.0003,2]
[338899747,1727038282233,-1500.0,0.0003,2]
[338899748,1727038282242,-1500.0,0.0003,2]
[338899749,1727038282252,-1500.0,0.0003,2]
[338899750,1727038282261,-1500.0,0.0003,2]
[338899751,1727038282270,-1500.0,0.0003,2]
[338899752,1727038282279,-1523.63,0.0003,2]
[338899753,1727038282288,-1500.0,0.0003,2]
[338899754,1727038282297,-1500.0,0.0003,2]
[338899755,1727038282306,-1500.0,0.0003,2]
[338899756,1727038282316,-1500.0,0.0003,2]
[338899757,1727038282325,-1210.30575349,0.0003,3]
[338899758,1727038282335,-241.0,0.0003,2]
[338899759,1727038282344,-1000.0,0.00030136,120]
[338899760,1727038282353,-400.0,0.00030137,60]
[338899761,1727038282363,-1572.24,0.000303,7]
[338899762,1727038282372,-152.33630927,0.00030359,2]
[338899763,1727038282381,-1375.06311362,0.00030392,2]
[338899764,1727038282391,-1000.0,0.0003041,120]
[338899765,1727038282400,-150.0,0.000306,2]
[338899766,1727038282410,-524.0,0.000306,2]
[338899767,1727038282420,-1216.0,0.000306,2]
[338899768,1727038282429,-6775.0,0.0003066,120]
[338899769,1727038282439,-1000.0,0.00030684,120]
[338899770,1727038282448,-2924.71,0.000307,14]
[338899771,1727038282458,-330.0,0.000308,120]
[338899772,1727038282468,-905.91865,0.000309,2]
[338899773,1727038282478,-1000.0,0.00030958,120]
[338899774,1727038282487,-300.0,0.00031,4]
[338899775,1727038282497,-4054.0,0.00031,10]
[338899776,1727038282507,-400.0,0.00031,7]
[338899777,1727038282516,-432.92166,0.000312,120]
[338899778,1727038282526,-232.92166,0.000312,120]
[338899779,1727038282536,-435.07502,0.000312,120]
[338899780,1727038282545,-1000.0,0.00031232,120]
[338899781,1727038282555,-1152.0,0.00031392,2]
[338899782,1727038282564,-1000.0,0.00031506,120]
[338899783,1727038282574,-153.0,0.00031507,2]
[338899784,1727038282583,-1375.06311362,0.00031619,2]
[338899785,1727038282592,-1000.0,0.0003178,120]
[338899786,1727038282602,-153.9401816,0.00031781,2]
[338899787,1727038282611,-49408.95,0.000318,14]
[338899788,1727038282620,-118914.77,0.000318,14]
[338899789,1727038282629,-1000.0,0.000318,30]
[338899790,1727038282638,-1210.30575349,0.000318,3]
[338899791,1727038282648,-1378.0,0.00031948,40]
[338899792,1727038282657,-300.0,0.00032,5]
[338899793,1727038282666,-150.0,0.00032,30]
[338899794,1727038282675,-2500.09138294,0.00032,30]
[338899795,1727038282685,-3000.0,0.00032,30]
[338899796,1727038282694,-1000.0,0.00032,120]
[338899797,1727038282703,-2000.0,0.00032,20]
[338899798,1727038282713,-3799.54000146,0.00032,30]
[338899799,1727038282722,-1000.0,0.00032,120]
[338899800,1727038282731,-803.14,0.00032,120]
[338899801,1727038282741,-2000.0,0.00032,8]
[338899802,1727038282750,-20000.0,0.00032,90]
[338899803,1727038282759,-251.335631,0.00032,30]
[338899804,1727038282770,-1000.0,0.00032054,120]
[338899805,1727038282779,-306.0,0.00032082,2]
[338899806,1727038282789,-8000.0,0.000321,15]
[338899807,1727038282798,-1572.24,0.000321,7]
[338899808,1727038282808,-500.0,0.00032123,10]
[338899809,1727038282817,-2924.71,0.000323,14]
[338899810,1727038282827,-1000.0,0.00032328,120]
[338899811,1727038282837,-1232.0,0.00032365,42]
[338899812,1727038282848,-1403.77548741,0.000325,15]
[338899813,1727038282858,-1000.0,0.000325,2]
[338899814,1727038282867,-155.308,0.000325,120]
[338899815,1727038282877,-155.308,0.000325,120]
[338899816,1727038282886,-155.309,0.000325,120]
[338899817,1727038282895,-155.308,0.000325,120]
[338899818,1727038282905,-155.309,0.000325,120]
[338899819,1727038282914,-500.0,0.00032602,15]
[338899820,1727038282924,-500.0,0.00032602,15]
[338899821,1727038282933,-500.0,0.00032602,15]
[338899822,1727038282943,-512.38873685,0.00032602,15]
[338899823,1727038282953,-1000.0,0.00032602,120]
[338899824,1727038282962,-960000.0,0.0003269,2]
[338899825,1727038282972,-445.62,0.000328,60]
[338899826,1727038282981,-191.54924457,0.000328,14]
[338899827,1727038282991,-1375.06311362,0.00032845,2]
[338899828,1727038283000,-1170.23,0.00032876,118]
[338899829,1727038283010,-1170.23,0.00032876,118]
[338899830,1727038283020,-1170.23,0.00032876,118]
[338899831,1727038283029,-1170.23,0.00032876,118]
[338899832,1727038283038,-1170.23,0.00032876,118]
[338899833,1727038283048,-1170.23,0.00032876,118]
[338899834,1727038283057,-1170.23,0.00032876,118]
[338899835,1727038283066,-1170.23,0.00032876,118]
[338899836,1727038283076,-1170.23,0.00032876,118]
[338899837,1727038283085,-1170.23,0.00032876,118]
[338899838,1727038283094,-1170.23,0.00032876,118]
[338899839,1727038283104,-1170.23,0.00032876,118]
[338899840,1727038283114,-1170.23,0.00032876,118]
[338899841,1727038283123,-1170.23,0.00032876,118]
[338899842,1727038283133,-1170.23,0.00032876,118]
[338899843,1727038283142,-1170.23,0.00032876,118]
[338899844,1727038283152,-1170.23,0.00032876,118]
[338899845,1727038283252,-1170.23,0.00032876,118]
[338899846,1727038283262,-1170.23,0.00032876,118]
[338899847,1727038283272,-1170.23,0.00032876,118]
[338899848,1727038283282,-1170.23,0.00032876,118]
[338899849,1727038283291,-1170.23,0.00032876,118]
[338899850,1727038283301,-1170.23,0.00032876,118]
[338899851,1727038283312,-1170.44964667,0.00032876,118]
[338899852,1727038283322,-503.32289882,0.00032876,30]
[338899853,1727038283332,-500.0,0.00032876,120]
[338899854,1727038283341,-500.0,0.00032876,120]
[338899855,1727038283350,-500.0,0.00032876,120]
[338899856,1727038283359,-500.0,0.00032876,120]
[338899857,1727038283369,-500.0,0.00032876,120]
[338899858,1727038283378,-500.0,0.00032876,120]
[338899859,1727038283387,-170.25840774,0.00032876,120]
[338899860,1727038283397,-1000.0,0.00032876,120]
[338899861,1727038283407,-500.0,0.00032876,2]
[338899862,1727038283417,-500.0,0.00032876,2]
[338899863,1727038283427,-567.52008045,0.00032876,2]
[338899864,1727038283436,-267.75163078,0.00032876,2]
[338899865,1727038283446,-500.0,0.00032876,2]
[338899866,1727038283455,-500.0,0.00032876,2]
[338899867,1727038283465,-420.05211831,0.00032876,2]
[338899868,1727038283475,-500.0,0.00032876,2]
[338899869,1727038283485,-500.0,0.00032876,2]
[338899870,1727038283495,-500.0,0.00032876,2]
[338899871,1727038283504,-500.0,0.00032876,2]
[338899872,1727038283513,-500.0,0.00032876,2]
[338899873,1727038283524,-500.0,0.00032876,2]
[338899874,1727038283533,-500.0,0.00032876,2]
[338899875,1727038283543,-500.0,0.00032876,2]
[338899876,1727038283553,-500.0,0.00032876,2]
[338899877,1727038283562,-500.0,0.00032876,2]
[338899878,1727038283571,-500.0,0.00032876,2]
[338899879,1727038283581,-500.0,0.00032876,2]
[338899880,1727038283591,-500.0,0.00032876,2]
[338899881,1727038283602,-500.0,0.00032876,2]
[338899882,1727038283612,-500.0,0.00032876,2]
[338899883,1727038283622,-500.0,0.00032876,2]
[338899884,1727038283631,-500.0,0.00032876,2]
[338899885,1727038283641,-500.0,0.00032876,2]
[338899886,1727038283651,-500.0,0.00032876,2]
[338899887,1727038283660,-500.0,0.00032876,2]
[338899888,1727038283669,-500.0,0.00032876,2]
[338899889,1727038283679,-500.0,0.00032876,2]
[338899890,1727038283688,-500.0,0.00032876,2]
[338899891,1727038283698,-159.17167239,0.00032876,2]
[338899892,1727038283708,-500.0,0.00032876,2]
[338899893,1727038283718,-500.0,0.00032876,2]
[338899894,1727038283729,-500.0,0.00032876,2]
[338899895,1727038283739,-500.0,0.00032876,2]
[338899896,1727038283748,-500.0,0.00032876,2]
[338899897,1727038283757,-500.0,0.00032876,2]
[338899898,1727038283767,-500.0,0.00032876,2]
[338899899,1727038283776,-500.0,0.00032876,2]
[338899900,1727038283786,-500.0,0.00032876,2]
[338899901,1727038283797,-346.69622963,0.00032876,2]
[338899902,1727038283806,-500.0,0.00032876,2]
[338899903,1727038283815,-500.0,0.00032876,2]
[338899904,1727038283825,-500.0,0.00032876,2]
[338899905,1727038283835,-500.0,0.00032876,2]
[338899906,1727038283847,-500.0,0.00032876,2]
[338899907,1727038283857,-500.0,0.00032876,2]
[338899908,1727038283866,-500.0,0.00032876,2]
[338899909,1727038283876,-500.0,0.00032876,2]
[338899910,1727038283886,-500.0,0.00032876,2]
[338899911,1727038283895,-500.0,0.00032876,2]
[338899912,1727038283905,-500.0,0.00032876,2]
[338899913,1727038283915,-573.83353321,0.00032877,60]
[338899914,1727038283924,-500.0,0.00032877,2]
[338899915,1727038283935,-500.0,0.00032877,2]
[338899916,1727038283945,-500.0,0.00032877,2]
[338899917,1727038283956,-500.0,0.00032877,2]
[338899918,1727038283965,-441.98084673,0.00032877,2]
[338899919,1727038283975,-271.33120519,0.00032877,2]
[338899920,1727038283984,-49408.95,0.000329,14]
[338899921,1727038283993,-118914.77,0.000329,14]
[338899922,1727038284003,-820935.71631062,0.00032945,20]
[338899923,1727038284013,-230.60499507,0.00032945,10]
[338899924,1727038284023,-6208.16067928,0.00032945,2]
[338899925,1727038284032,-171.0,0.00032945,2]
[338899926,1727038284041,-2438.90058104,0.00032945,10]
[338899927,1727038284050,-12805.44980867,0.00032945,10]
[338899928,1727038284060,-1048.35576865,0.00032945,10]
[338899929,1727038284070,-200.0,0.00032945,10]
[338899930,1727038284079,-1000.0,0.00032945,30]
[338899931,1727038284089,-431.92584268,0.00032945,120]
[338899932,1727038284098,-591.29234433,0.00032945,120]
[338899933,1727038284107,-525.146429,0.00032945,120]
[338899934,1727038284117,-150.0,0.00032945,60]
[338899935,1727038284127,-150.0,0.00032945,60]
[338899936,1727038284136,-19314.9138955,0.00032945,2]
[338899937,1727038284146,-1300.0,0.00032945,120]
[338899938,1727038284156,-2480.58723376,0.00032945,120]
[338899939,1727038284165,-1218.59765022,0.00032945,120]
[338899940,1727038284174,-3052.34823728,0.00032945,30]
[338899941,1727038284184,-2868.7128017,0.00032945,120]
[338899942,1727038284193,-256.67134553,0.00032945,120]
[338899943,1727038284203,-1359.23261122,0.00032945,30]
[338899944,1727038284213,-89204.41448845,0.00032945,2]
[338899945,1727038284223,-515.37657184,0.00032945,14]
[338899946,1727038284233,-671.46401907,0.00032945,120]
[338899947,1727038284243,-1999.999996,0.00032945,120]
[338899949,1727038284252,-2119.69767321,0.00032945,120]
[338899950,1727038284262,-870.13726147,0.00032945,120]
[338899951,1727038284271,-2047.00948174,0.00032945,120]
[338899952,1727038284281,-1725.11796576,0.00032945,120]
[338899953,1727038284291,-626.66789218,0.00032945,120]
[338899954,1727038284302,-3859.54691482,0.00032945,120]
[338899955,1727038284311,-4472.73739271,0.00032945,120]
[338899956,1727038284321,-10160.80970074,0.00032945,60]
[338899957,1727038284332,-10090.49138525,0.00032945,2]
[338899958,1727038284343,-2000.0,0.00032945,120]
[338899959,1727038284353,-1042.33631098,0.00032945,120]
[338899960,1727038284362,-10048.7169402,0.00032945,2]
[338899961,1727038284372,-18078.74126551,0.00032945,2]
[338899962,1727038284381,-1739.45407433,0.00032945,30]
[338899963,1727038284390,-902.80234064,0.00032945,120]
[338899964,1727038284399,-2952.80473005,0.00032945,7]
[338899965,1727038284409,-1023.42770572,0.00032945,120]
[338899966,1727038284420,-202.18145687,0.00032945,7]
[338899967,1727038284430,-222.3387638,0.00032945,2]
[338899968,1727038284441,-1942.7,0.00032945,120]
[338899970,1727038284451,-3231.10483187,0.00032945,35]
[338899971,1727038284461,-1237.83797049,0.00032945,2]
[338899972,1727038284471,-1836.024039,0.00032945,60]
[338899973,1727038284481,-1521.87539708,0.00032945,2]
[338899974,1727038284491,-4326.8705213,0.00032945,2]
[338899975,1727038284501,-85861.98731766,0.00032945,60]
[338899976,1727038284509,-1528.42771274,0.00032945,120]
[338899977,1727038284520,-14067.20536342,0.00032945,60]
[338899978,1727038284529,-4872.10488526,0.00032945,20]
[338899979,1727038284538,-3265.36615351,0.00032945,2]
[338899980,1727038284547,-260.1138228,0.00032945,30]
[338899981,1727038284556,-14429.97279696,0.00032945,120]
[338899982,1727038284565,-4064.09379813,0.00032945,120]
[338899983,1727038284574,-7078.85463226,0.00032945,120]
[338899984,1727038284583,-5475.40619828,0.00032945,5]
[338899985,1727038284592,-200000.0,0.00032945,120]
[338899986,1727038284601,-100000.0,0.00032945,120]
[338899987,1727038284610,-1651.27135905,0.00032945,120]
[338899988,1727038284620,-795.88454455,0.00032945,32]
[338899989,1727038284629,-2448.48367431,0.00032945,2]
[338899990,1727038284639,-281318.45403088,0.00032945,7]
[338899991,1727038284649,-1441.45845355,0.00032945,120]
[338899992,1727038284658,-1893.84716421,0.00032945,120]
[338899993,1727038284667,-30000.0,0.00032945,120]
[338899994,1727038284676,-74316.96962697,0.00032945,30]
[338899995,1727038284685,-290.4737835,0.00032945,30]
[338899996,1727038284696,-143478.63503538,0.00032945,7]
[338899997,1727038284705,-9000.27941016,0.00032945,2]
[338899998,1727038284714,-200.0,0.00032945,30]
[338899999,1727038284724,-30595.3975819,0.00032945,30]
[338900000,1727038284738,-5734.08650239,0.00032945,30]
[338900001,1727038284747,-240.43919613,0.00032945,120]
[338900002,1727038284756,-3092.08973175,0.00032945,30]
[338900003,1727038284765,-240.82074905,0.00032945,120]
[338900004,1727038284774,-210550.13524855,0.00032945,30]
[338900005,1727038284785,-37121.77242967,0.00032945,30]
[338900006,1727038284794,-291.44639331,0.00032945,120]
[338900007,1727038284803,-177.46499879,0.00032945,120]
[338900008,1727038284812,-431.93235117,0.00032945,30]
[338900009,1727038284821,-233.29864816,0.00032945,30]
[338900010,1727038284830,-183.5295441,0.00032945,2]
[338900011,1727038284841,-55296.73180962,0.00032945,30]
[338900012,1727038284931,-3473.91438131,0.00032945,120]
[338900013,1727038284942,-2465.18372348,0.00032945,120]
[338900014,1727038284953,-7242.25325511,0.00032945,120]
[338900015,1727038284963,-366.59171237,0.00032945,30]
[338900016,1727038284977,-494.43098136,0.00032945,120]
[338900017,1727038284986,-104157.27930971,0.00032945,30]
[338900018,1727038284996,-1128.99830395,0.00032945,21]
[338900019,1727038285006,-1460.41684473,0.00032945,120]
[338900020,1727038285017,-1195.119996,0.00032945,120]
[338900021,1727038285027,-150.0,0.00032945,14]
[338900022,1727038285037,-150.0,0.00032945,14]
[338900023,1727038285046,-200.0,0.00032945,14]
[338900024,1727038285056,-1566.31652092,0.00032945,35]
[338900025,1727038285066,-9826.37463894,0.00032945,2]
[338900026,1727038285075,-3020.89606467,0.00032945,2]
[338900027,1727038285085,-300.0,0.00032945,2]
[338900028,1727038285095,-792.97928992,0.00032945,2]
[338900029,1727038285105,-6443.97958886,0.00032945,2]
[338900030,1727038285114,-513.95332017,0.00032945,2]
[338900031,1727038285124,-290.86031963,0.00032945,2]
[338900032,1727038285133,-4148.08258172,0.00032945,2]
[338900033,1727038285142,-320.23115678,0.00032945,2]
[338900034,1727038285152,-285.73113296,0.00032945,2]
[338900035,1727038285162,-1184.6271769,0.00032945,2]
[338900036,1727038285171,-4118.89195032,0.00032945,2]
[338900037,1727038285181,-1144.65317854,0.00032945,2]
[338900038,1727038285190,-154.25101054,0.00032945,2]
[338900039,1727038285200,-191923.72475138,0.00032945,5]
[338900040,1727038285209,-6174.44805203,0.00032945,7]
[338900041,1727038285218,-1516.3529584,0.00032945,2]
[338900042,1727038285229,-437.03643259,0.00032945,2]
[338900043,1727038285238,-223.23868063,0.00032945,2]
[338900044,1727038285247,-3056.45981434,0.00032945,2]
[338900045,1727038285257,-1018.28090942,0.00032945,2]
[338900046,1727038285267,-37322.16569076,0.00032945,2]
[338900047,1727038285276,-904.41710111,0.00032945,2]
[338900048,1727038285286,-4050.90200145,0.00032945,2]
[338900049,1727038285295,-175.37364399,0.00032945,2]
[338900050,1727038285304,-458.33990819,0.00032945,2]
[338900051,1727038285314,-228.94,0.00032945,30]
[338900052,1727038285323,-1939366.0,0.00032945,30]
[338900053,1727038285333,-1583.0418421,0.00032945,30]
[338900054,1727038285342,-99399.0,0.00032945,42]
[338900055,1727038285351,-235.8709839,0.00032945,30]
[338900056,1727038285361,-83187.21664729,0.00032945,2]
[338900057,1727038285370,-30840.76069646,0.00032945,30]
[338900058,1727038285379,-718.09728793,0.00032945,60]
[338900059,1727038285388,-355.5,0.00032945,120]
[338900060,1727038285397,-7169.5384484,0.00032945,30]
[338900061,1727038285407,-280.95923285,0.00032945,15]
[338900062,1727038285416,-163.08413553,0.00032945,2]
[338900063,1727038285426,-206.47713979,0.00032945,30]
[338900065,1727038285436,-3000.0,0.00032945,118]
[338900066,1727038285445,-3000.0,0.00032945,115]
[338900067,1727038285455,-3000.0,0.00032945,112]
[338900068,1727038285464,-253.2160417,0.00032945,30]
[338900069,1727038285474,-172.11465588,0.00032945,3]
[338900070,1727038285483,-1000043.69685197,0.00032945,120]
[338900071,1727038285493,-11011.85642948,0.00032945,3]
[338900072,1727038285502,-886.319092,0.00032945,2]
[338900073,1727038285512,-2935.53205357,0.00032945,120]
[338900074,1727038285522,-6412.08182708,0.00032945,2]
[338900075,1727038285531,-150.0,0.00032945,30]
[338900076,1727038285541,-150.0,0.00032945,30]
[338900077,1727038285550,-150.0,0.00032945,30]
[338900078,1727038285560,-150.0,0.00032945,30]
[338900079,1727038285569,-150.0,0.00032945,30]
[338900080,1727038285578,-250.0,0.00032945,30]
[338900081,1727038285588,-250.0,0.00032945,30]
[338900082,1727038285597,-250.0,0.00032945,30]
[338900083,1727038285608,-250.0,0.00032945,30]
[338900084,1727038285620,-250.0,0.00032945,30]
[338900085,1727038285630,-250.0,0.00032945,30]
[338900086,1727038285641,-250.0,0.00032945,30]
[338900087,1727038285651,-250.0,0.00032945,30]
[338900088,1727038285661,-250.0,0.00032945,30]
[338900089,1727038285671,-498.35998,0.00032945,30]
[338900090,1727038285682,-150.0,0.00032945,30]
[338900091,1727038285693,-167.992166,0.00032945,30]
[338900092,1727038285705,-500.0,0.00032998,2]
[338900093,1727038285716,-500.0,0.00032998,2]
[338900094,1727038285726,-500.0,0.00032998,2]
[338900095,1727038285735,-500.0,0.00032998,2]
[338900096,1727038285745,-915.70278165,0.00032998,2]
[338900097,1727038285754,-12560.72734082,0.00033,7]
[338900098,1727038285763,-300.0,0.00033,7]
[338900099,1727038285774,-150.0,0.00033,30]
[338900100,1727038285784,-347.0,0.00033,7]
[338900101,1727038285794,-27793.25,0.00033,14]
[338900102,1727038285804,-241.0,0.00033,2]
[338900103,1727038285814,-241.0,0.00033,2]
[338900104,1727038285825,-500.0,0.00033042,2]
[338900105,1727038285835,-500.0,0.00033042,2]
[338900106,1727038285848,-500.0,0.00033042,2]
[338900107,1727038285858,-500.0,0.00033042,2]
[338900108,1727038285867,-500.0,0.00033042,2]
[338900109,1727038285877,-500.0,0.00033042,2]
[338900110,1727038285887,-500.0,0.00033042,2]
[338900111,1727038285898,-500.0,0.00033042,2]
[338900112,1727038285909,-500.0,0.00033042,2]
[338900113,1727038285920,-500.0,0.00033042,2]
[338900114,1727038285929,-500.0,0.00033042,2]
[338900115,1727038285939,-500.0,0.00033042,2]
[338900116,1727038285950,-500.0,0.00033042,2]
[338900117,1727038285959,-500.0,0.00033042,2]
[338900118,1727038285968,-500.0,0.00033042,2]
[338900119,1727038285978,-500.0,0.00033042,2]
[338900120,1727038285988,-500.0,0.00033042,2]
[338900121,1727038285999,-500.0,0.00033042,2]
[338900122,1727038286010,-500.0,0.00033042,2]
[338900123,1727038286020,-500.0,0.00033042,2]
[338900124,1727038286031,-591.78831099,0.00033042,2]
[338900125,1727038286040,-1500.0,0.00033136,42]
[338900126,1727038286049,-1000.0,0.0003315,120]
[338900127,1727038286058,-151.0,0.00033288,120]
[338900128,1727038286068,-330.0,0.000333,120]
[338900129,1727038286077,-1000.0,0.00033424,120]
[338900130,1727038286086,-2924.71,0.000335,14]
[338900131,1727038286095,-151.0,0.00033507,120]
[338900132,1727038286104,-1500.0,0.00033545,42]
[338900133,1727038286113,-166.250462,0.00033598,2]
[338900134,1727038286123,-1572.24,0.000336,30]
[338900135,1727038286134,-1210.30575349,0.000336,3]
[338900136,1727038286145,-150.0,0.000336,2]
[338900137,1727038286156,-524.0,0.000336,2]
[338900138,1727038286166,-1216.0,0.000336,2]
[338900139,1727038286175,-1000.0,0.00033698,120]
[338900140,1727038286185,-500.0,0.00033767,10]
[338900141,1727038286195,-150.0,0.00033898,14]
[338900142,1727038286206,-1500.0,0.00033955,42]
[338900143,1727038286215,-1000.0,0.00033972,120]
[338900144,1727038286226,-529.86353008,0.00034,5]
[338900145,1727038286236,-250.0,0.00034,10]
[338900146,1727038286247,-200.0,0.00034,30]
[338900147,1727038286257,-1000.0,0.00034,120]
[338900148,1727038286266,-4860.0,0.00034,2]
[338900149,1727038286275,-250.0,0.00034,30]
[338900150,1727038286284,-500.0,0.00034063,2]
[338900151,1727038286293,-500.0,0.00034074,2]
[338900152,1727038286303,-500.0,0.00034098,2]
[338900153,1727038286313,-500.0,0.00034098,2]
[338900154,1727038286323,-500.0,0.00034098,2]
[338900155,1727038286332,-500.0,0.00034098,2]
[338900156,1727038286341,-500.0,0.00034098,2]
[338900157,1727038286350,-500.0,0.00034099,2]
[338900158,1727038286360,-500.0,0.00034125,2]
[338900159,1727038286369,-1000.0,0.00034246,120]
[338900161,1727038286378,-1500.0,0.00034364,42]
[338900162,1727038286387,-151.0,0.00034384,120]
[338900163,1727038286397,-1000.0,0.0003452,120]
[338900164,1727038286410,-1351.0,0.00034531,2]
[338900165,1727038286421,-153.0,0.00034691,2]
[338900166,1727038286431,-153.0,0.00034691,2]
[338900167,1727038286514,-153.0,0.00034691,2]
[338900168,1727038286523,-153.0,0.00034691,2]
[338900169,1727038286533,-153.0,0.00034691,2]
[338900170,1727038286542,-153.0,0.00034691,2]
[338900171,1727038286551,-1297.75801569,0.00034728,12]
[338900172,1727038286560,-1500.0,0.00034773,42]
[338900173,1727038286569,-1000.0,0.00034794,120]
[338900174,1727038286578,-1000.0,0.000348,3]
[338900175,1727038286587,-118884.83,0.000349,14]
[338900176,1727038286596,-2924.71,0.000349,14]
[338900177,1727038286607,-10426.78823075,0.00035,2]
[338900178,1727038286617,-901.10438451,0.00035,120]
[338900179,1727038286628,-10022.31676839,0.00035,120]
[338900180,1727038286638,-750.02947219,0.00035,2]
[338900181,1727038286647,-21065.0,0.00035,30]
[338900182,1727038286657,-558.98271598,0.00035,120]
[338900183,1727038286666,-5000.0,0.00035,30]
[338900184,1727038286675,-49474.57,0.00035,14]
[338900185,1727038286684,-3498.26794638,0.00035,2]
[338900186,1727038286693,-376.79290544,0.00035068,120]
[338900187,1727038286702,-1572.24,0.000351,30]
[338900188,1727038286711,-1500.0,0.00035182,42]
[338900189,1727038286720,-151.0,0.0003526,120]
[338900190,1727038286733,-363.586675,0.00035376,2]
[338900191,1727038286743,-153.0,0.00035376,2]
[338900192,1727038286753,-208.5302684,0.00035376,2]
[338900193,1727038286763,-432.92168,0.000354,120]
[338900194,1727038286772,-435.07502,0.000354,120]
[338900195,1727038286782,-1331.33632884,0.000354,7]
[338900196,1727038286791,-500.0,0.00035411,10]